[Event "Titled Tuesday Blitz November 08 Early 2022"]
[White "Berdychevskaya, Natasha"]
[Black "Averjanov, Alexey"]
[WhiteFideId "4159322"]
[BlackFideId "14109867"]
[WhiteElo "2108"]
[BlackElo "2581"]
[Result "0-1"]
[Round "06"]
[TimeControl "180+1"]
[Date "2022.11.09"]
[WhiteClock "0:00:09"]
[BlackClock "0:00:41"]

1. d4 {[%clk 0:03:00]}  d5 {[%clk 0:02:57]} 2. Bf4 {[%clk 0:02:59]}  Nf6 {[%clk 0:02:54]} 3. e3 {[%clk 0:02:59]}  e6 {[%clk 0:02:53]} 4. Nf3 {[%clk 0:02:58]}  c5 {[%clk 0:02:52]} 5. c3 {[%clk 0:02:57]}  Bd6 {[%clk 0:02:51]} 6. Bg3 {[%clk 0:02:56]}  Qc7 {[%clk 0:02:51]} 7. Bd3 {[%clk 0:02:51]}  Nbd7 {[%clk 0:02:50]} 8. Nbd2 {[%clk 0:02:47]}  O-O {[%clk 0:02:50]} 9. O-O {[%clk 0:02:42]}  e5 {[%clk 0:02:50]} 10. dxe5 {[%clk 0:02:35]}  Nxe5 {[%clk 0:02:51]} 11. Nxe5 {[%clk 0:02:34]}  Bxe5 {[%clk 0:02:52]} 12. Bxe5 {[%clk 0:02:29]}  Qxe5 {[%clk 0:02:53]} 13. h3 {[%clk 0:02:22]}  b6 {[%clk 0:02:53]} 14. Qc2 {[%clk 0:02:15]}  Bb7 {[%clk 0:02:52]} 15. a4 {[%clk 0:02:12]}  a5 {[%clk 0:02:52]} 16. Rad1 {[%clk 0:02:04]}  Rad8 {[%clk 0:02:52]} 17. Rfe1 {[%clk 0:01:57]}  Rd6 {[%clk 0:02:49]} 18. e4 {[%clk 0:01:52]}  dxe4 {[%clk 0:02:45]} 19. Nc4 {[%clk 0:01:45]}  exd3 {[%clk 0:02:42]} 20. Nxe5 {[%clk 0:01:42]}  dxc2 {[%clk 0:02:42]} 21. Rxd6 {[%clk 0:01:38]}  Re8 {[%clk 0:02:38]} 22. Nd3 {[%clk 0:01:17]}  c4 {[%clk 0:01:35]} 23. Rxe8+ {[%clk 0:01:13]}  Nxe8 {[%clk 0:01:36]} 24. Rd8 {[%clk 0:01:03]}  Kf8 {[%clk 0:01:34]} 25. Nc1 {[%clk 0:01:02]}  Ke7 {[%clk 0:01:33]} 26. Rd2 {[%clk 0:00:55]}  Nd6 {[%clk 0:01:29]} 27. Rxc2 {[%clk 0:00:50]}  Bc6 {[%clk 0:01:27]} 28. Ne2 {[%clk 0:00:43]}  Bxa4 {[%clk 0:01:25]} 29. Rd2 {[%clk 0:00:43]}  Ne4 {[%clk 0:01:21]} 30. Rd4 {[%clk 0:00:40]}  Nd6 {[%clk 0:01:21]} 31. Nf4 {[%clk 0:00:36]}  Bc6 {[%clk 0:01:17]} 32. Nd5+ {[%clk 0:00:32]}  Bxd5 {[%clk 0:01:12]} 33. Rxd5 {[%clk 0:00:33]}  Ke6 {[%clk 0:01:13]} 34. Rd4 {[%clk 0:00:32]}  b5 {[%clk 0:01:11]} 35. g4 {[%clk 0:00:32]}  b4 {[%clk 0:01:09]} 36. cxb4 {[%clk 0:00:27]}  axb4 {[%clk 0:01:09]} 37. f4 {[%clk 0:00:26]}  c3 {[%clk 0:01:06]} 38. bxc3 {[%clk 0:00:25]}  bxc3 {[%clk 0:01:07]} 39. Rd3 {[%clk 0:00:22]}  Nb5 {[%clk 0:01:03]} 40. Rd8 {[%clk 0:00:17]}  Nd6 {[%clk 0:01:02]} 41. Ra8 {[%clk 0:00:15]}  Kd5 {[%clk 0:00:57]} 42. Kf2 {[%clk 0:00:15]}  c2 {[%clk 0:00:43]} 43. Ra1 {[%clk 0:00:13]}  Kd4 {[%clk 0:00:44]} 44. Ke2 {[%clk 0:00:12]}  Nc4 {[%clk 0:00:42]} 45. Ra4 {[%clk 0:00:09]}  c1=Q {[%clk 0:00:41]} 0-1


[Site "https://www.chess.com"]

[Event "Titled Tuesday Blitz November 08 Early 2022"]
[White "Besedes, Danilo"]
[Black "Le, Tuan Minh"]
[WhiteFideId "946796"]
[BlackFideId "12401153"]
[WhiteElo "2352"]
[BlackElo "2530"]
[Result "0-1"]
[Round "06"]
[TimeControl "180+1"]
[Date "2022.11.08"]
[WhiteClock "0:00:34"]
[BlackClock "0:02:19"]

1. Nf3 {[%clk 0:03:00]}  d5 {[%clk 0:03:00]} 2. d4 {[%clk 0:03:00]}  Nf6 {[%clk 0:02:59]} 3. e3 {[%clk 0:02:59]}  c6 {[%clk 0:02:59]} 4. c4 {[%clk 0:02:59]}  Bf5 {[%clk 0:02:59]} 5. Nc3 {[%clk 0:02:59]}  e6 {[%clk 0:02:59]} 6. h3 {[%clk 0:02:56]}  Nbd7 {[%clk 0:02:59]} 7. Nh4 {[%clk 0:02:54]}  Be4 {[%clk 0:02:59]} 8. Bd2 {[%clk 0:02:44]}  Bd6 {[%clk 0:02:59]} 9. Nxe4 {[%clk 0:02:31]}  Nxe4 {[%clk 0:03:00]} 10. Nf3 {[%clk 0:02:26]}  O-O {[%clk 0:03:00]} 11. Bd3 {[%clk 0:02:26]}  f5 {[%clk 0:03:00]} 12. O-O {[%clk 0:02:22]}  Rf6 {[%clk 0:02:58]} 13. Bc3 {[%clk 0:02:19]}  Rg6 {[%clk 0:02:53]} 14. Rc1 {[%clk 0:01:35]}  Qf6 {[%clk 0:02:50]} 15. Nd2 {[%clk 0:01:19]}  Qh4 {[%clk 0:02:39]} 16. Bxe4 {[%clk 0:01:02]}  Qxh3 {[%clk 0:02:21]} 17. f4 {[%clk 0:00:42]}  Qxe3+ {[%clk 0:02:20]} 18. Kh1 {[%clk 0:00:34]}  Rh6+ {[%clk 0:02:19]} 0-1


[Site "https://www.chess.com"]

[Event "Titled Tuesday Blitz November 08 Early 2022"]
[White "Bon, Michael"]
[Black "Santos Flores, Alberto"]
[WhiteFideId "620696"]
[BlackFideId "3601234"]
[WhiteElo "2311"]
[BlackElo "2235"]
[Result "1-0"]
[Round "06"]
[TimeControl "180+1"]
[Date "2022.11.09"]
[WhiteClock "0:00:06"]
[BlackClock "0:00:01"]

1. e4 {[%clk 0:03:00]}  c5 {[%clk 0:02:59]} 2. c3 {[%clk 0:02:58]}  g6 {[%clk 0:02:57]} 3. d4 {[%clk 0:02:57]}  cxd4 {[%clk 0:02:58]} 4. cxd4 {[%clk 0:02:57]}  d5 {[%clk 0:02:58]} 5. e5 {[%clk 0:02:57]}  Nc6 {[%clk 0:02:55]} 6. h4 {[%clk 0:02:54]}  h5 {[%clk 0:02:45]} 7. Nc3 {[%clk 0:02:53]}  Bg7 {[%clk 0:02:45]} 8. Be3 {[%clk 0:02:46]}  Nh6 {[%clk 0:02:43]} 9. Bd3 {[%clk 0:02:36]}  Bf5 {[%clk 0:02:41]} 10. Nf3 {[%clk 0:02:28]}  Bxd3 {[%clk 0:02:40]} 11. Qxd3 {[%clk 0:02:29]}  Nf5 {[%clk 0:02:39]} 12. O-O {[%clk 0:02:03]}  e6 {[%clk 0:02:38]} 13. g3 {[%clk 0:02:01]}  a6 {[%clk 0:02:34]} 14. Na4 {[%clk 0:01:56]}  Qe7 {[%clk 0:02:08]} 15. a3 {[%clk 0:01:44]}  O-O {[%clk 0:02:04]} 16. b4 {[%clk 0:01:28]}  Nxe3 {[%clk 0:01:52]} 17. Qxe3 {[%clk 0:01:25]}  a5 {[%clk 0:01:09]} 18. b5 {[%clk 0:01:20]}  Na7 {[%clk 0:01:01]} 19. Qd3 {[%clk 0:01:04]}  Rac8 {[%clk 0:00:56]} 20. Nb6 {[%clk 0:01:01]}  Rc7 {[%clk 0:00:49]} 21. Rac1 {[%clk 0:01:00]}  Nc8 {[%clk 0:00:43]} 22. Na4 {[%clk 0:00:58]}  Qd7 {[%clk 0:00:34]} 23. Nc5 {[%clk 0:00:54]}  Qe7 {[%clk 0:00:34]} 24. a4 {[%clk 0:00:53]}  Nb6 {[%clk 0:00:33]} 25. Nd2 {[%clk 0:00:44]}  Rfc8 {[%clk 0:00:28]} 26. Ra1 {[%clk 0:00:22]}  Nc4 {[%clk 0:00:25]} 27. Nxc4 {[%clk 0:00:19]}  dxc4 {[%clk 0:00:26]} 28. Qc3 {[%clk 0:00:19]}  b6 {[%clk 0:00:26]} 29. Ne4 {[%clk 0:00:18]}  Rd7 {[%clk 0:00:22]} 30. Nd6 {[%clk 0:00:18]}  Rxd6 {[%clk 0:00:22]} 31. exd6 {[%clk 0:00:18]}  Qxd6 {[%clk 0:00:23]} 32. Rfd1 {[%clk 0:00:17]}  e5 {[%clk 0:00:17]} 33. dxe5 {[%clk 0:00:13]}  Qxe5 {[%clk 0:00:18]} 34. Qxe5 {[%clk 0:00:12]}  Bxe5 {[%clk 0:00:19]} 35. Rac1 {[%clk 0:00:12]}  c3 {[%clk 0:00:19]} 36. Rc2 {[%clk 0:00:12]}  Rc4 {[%clk 0:00:16]} 37. Ra1 {[%clk 0:00:09]}  Kf8 {[%clk 0:00:16]} 38. Kf1 {[%clk 0:00:08]}  Re4 {[%clk 0:00:14]} 39. Raa2 {[%clk 0:00:04]}  Ke7 {[%clk 0:00:13]} 40. Re2 {[%clk 0:00:04]}  Rxe2 {[%clk 0:00:12]} 41. Rxe2 {[%clk 0:00:05]}  Kd6 {[%clk 0:00:11]} 42. Ke1 {[%clk 0:00:03]}  Bd4 {[%clk 0:00:10]} 43. Kd1 {[%clk 0:00:03]}  Kc5 {[%clk 0:00:10]} 44. Kc2 {[%clk 0:00:03]}  f5 {[%clk 0:00:09]} 45. Re6 {[%clk 0:00:03]}  Bxf2 {[%clk 0:00:08]} 46. Rxg6 {[%clk 0:00:03]}  Kb4 {[%clk 0:00:08]} 47. Rg5 {[%clk 0:00:04]}  Kxa4 {[%clk 0:00:07]} 48. Rxf5 {[%clk 0:00:04]}  Bxg3 {[%clk 0:00:07]} 49. Rxh5 {[%clk 0:00:04]}  Kb4 {[%clk 0:00:07]} 50. Rh7 {[%clk 0:00:04]}  a4 {[%clk 0:00:07]} 51. h5 {[%clk 0:00:05]}  a3 {[%clk 0:00:07]} 52. Ra7 {[%clk 0:00:05]}  Bf4 {[%clk 0:00:07]} 53. Ra6 {[%clk 0:00:04]}  Kxb5 {[%clk 0:00:07]} 54. Rxa3 {[%clk 0:00:04]}  Be5 {[%clk 0:00:06]} 55. h6 {[%clk 0:00:04]}  Kc4 {[%clk 0:00:06]} 56. Ra4+ {[%clk 0:00:03]}  Kc5 {[%clk 0:00:06]} 57. Re4 {[%clk 0:00:03]}  Bf6 {[%clk 0:00:04]} 58. Re6 {[%clk 0:00:03]}  Bd4 {[%clk 0:00:04]} 59. h7 {[%clk 0:00:02]}  b5 {[%clk 0:00:05]} 60. Re4 {[%clk 0:00:02]}  Bg7 {[%clk 0:00:04]} 61. Rg4 {[%clk 0:00:02]}  Be5 {[%clk 0:00:04]} 62. Rg8 {[%clk 0:00:02]}  Kc4 {[%clk 0:00:02]} 63. h8=Q {[%clk 0:00:03]}  Bxh8 {[%clk 0:00:02]} 64. Rxh8 {[%clk 0:00:04]}  b4 {[%clk 0:00:02]} 65. Rh4+ {[%clk 0:00:05]}  Kc5 {[%clk 0:00:01]} 66. Kb3 {[%clk 0:00:06]} 1-0


[Site "https://www.chess.com"]

[Event "Titled Tuesday Blitz November 08 Early 2022"]
[White "Cabezas Solano, David Alejandro"]
[Black "Yeremyan, Alen"]
[WhiteFideId "6507522"]
[BlackFideId "13308998"]
[WhiteElo "2035"]
[BlackElo "2159"]
[Result "1/2-1/2"]
[Round "06"]
[TimeControl "180+1"]
[Date "2022.11.09"]
[WhiteClock "0:00:04"]
[BlackClock "0:02:01"]

1. d4 {[%clk 0:03:00]}  Nf6 {[%clk 0:02:59]} 2. Nf3 {[%clk 0:02:58]}  g6 {[%clk 0:03:00]} 3. c4 {[%clk 0:02:58]}  Bg7 {[%clk 0:03:00]} 4. g3 {[%clk 0:02:59]}  O-O {[%clk 0:03:00]} 5. Bg2 {[%clk 0:02:59]}  d5 {[%clk 0:03:01]} 6. cxd5 {[%clk 0:02:58]}  Qxd5 {[%clk 0:03:01]} 7. O-O {[%clk 0:02:59]}  Qh5 {[%clk 0:03:01]} 8. Nc3 {[%clk 0:02:58]}  Bh3 {[%clk 0:03:02]} 9. e4 {[%clk 0:02:49]}  Ng4 {[%clk 0:03:02]} 10. Nh4 {[%clk 0:02:32]}  Bxg2 {[%clk 0:02:59]} 11. Kxg2 {[%clk 0:02:32]}  Rd8 {[%clk 0:03:00]} 12. h3 {[%clk 0:02:10]}  Nf6 {[%clk 0:03:00]} 13. Be3 {[%clk 0:02:06]}  Nc6 {[%clk 0:02:56]} 14. d5 {[%clk 0:02:00]}  Qxd1 {[%clk 0:02:51]} 15. Rfxd1 {[%clk 0:01:50]}  Ne5 {[%clk 0:02:48]} 16. Bf4 {[%clk 0:01:36]}  Nfd7 {[%clk 0:02:39]} 17. Rac1 {[%clk 0:01:30]}  c6 {[%clk 0:02:35]} 18. b3 {[%clk 0:01:18]}  Rac8 {[%clk 0:02:33]} 19. Nf3 {[%clk 0:01:14]}  Nxf3 {[%clk 0:02:27]} 20. Kxf3 {[%clk 0:01:15]}  Ne5+ {[%clk 0:02:27]} 21. Ke2 {[%clk 0:01:12]}  e6 {[%clk 0:02:25]} 22. dxe6 {[%clk 0:01:07]}  fxe6 {[%clk 0:02:26]} 23. Bg5 {[%clk 0:01:05]}  Rxd1 {[%clk 0:02:23]} 24. Rxd1 {[%clk 0:01:06]}  Nf7 {[%clk 0:02:23]} 25. Bd2 {[%clk 0:01:01]}  Rd8 {[%clk 0:02:23]} 26. Be1 {[%clk 0:00:51]}  Rxd1 {[%clk 0:02:23]} 27. Kxd1 {[%clk 0:00:50]}  Nd6 {[%clk 0:02:22]} 28. f3 {[%clk 0:00:49]}  Be5 {[%clk 0:02:20]} 29. Ke2 {[%clk 0:00:39]}  Kf7 {[%clk 0:02:20]} 30. Kd3 {[%clk 0:00:39]}  g5 {[%clk 0:02:16]} 31. Ne2 {[%clk 0:00:37]}  h6 {[%clk 0:02:16]} 32. f4 {[%clk 0:00:37]}  gxf4 {[%clk 0:02:16]} 33. gxf4 {[%clk 0:00:37]}  Bg7 {[%clk 0:02:16]} 34. Bb4 {[%clk 0:00:36]}  Nb5 {[%clk 0:02:12]} 35. a4 {[%clk 0:00:35]}  Nc7 {[%clk 0:02:12]} 36. Bd6 {[%clk 0:00:35]}  Ne8 {[%clk 0:02:12]} 37. Bb8 {[%clk 0:00:35]}  a6 {[%clk 0:02:13]} 38. e5 {[%clk 0:00:28]}  Bf8 {[%clk 0:02:11]} 39. Ng3 {[%clk 0:00:28]}  Be7 {[%clk 0:02:10]} 40. Kc4 {[%clk 0:00:25]}  Ng7 {[%clk 0:02:10]} 41. b4 {[%clk 0:00:23]}  b5+ {[%clk 0:02:10]} 42. axb5 {[%clk 0:00:22]}  axb5+ {[%clk 0:02:11]} 43. Kc3 {[%clk 0:00:20]}  Nf5 {[%clk 0:02:11]} 44. Ne4 {[%clk 0:00:09]}  Ne3 {[%clk 0:02:10]} 45. Nd6+ {[%clk 0:00:04]}  Kf8 {[%clk 0:02:11]} 46. Kd4 {[%clk 0:00:03]}  Nd5 {[%clk 0:02:12]} 47. Kc5 {[%clk 0:00:04]}  Nxf4 {[%clk 0:02:05]} 48. Kxc6 {[%clk 0:00:04]}  Nd3 {[%clk 0:02:05]} 49. Kxb5 {[%clk 0:00:04]}  Nxe5 {[%clk 0:02:05]} 50. Ne4 {[%clk 0:00:02]}  Nd3 {[%clk 0:02:03]} 51. Bd6 {[%clk 0:00:02]}  Ke8 {[%clk 0:02:02]} 52. Bxe7 {[%clk 0:00:02]}  Kxe7 {[%clk 0:02:03]} 53. Kc4 {[%clk 0:00:02]}  Ne5+ {[%clk 0:02:03]} 54. Kd4 {[%clk 0:00:03]}  Nf3+ {[%clk 0:02:04]} 55. Ke3 {[%clk 0:00:03]}  Nh4 {[%clk 0:02:00]} 56. b5 {[%clk 0:00:03]}  Ng6 {[%clk 0:02:00]} 57. Kd4 {[%clk 0:00:02]}  Kd7 {[%clk 0:02:00]} 58. Nf6+ {[%clk 0:00:01]}  Kc7 {[%clk 0:02:00]} 59. Ng4 {[%clk 0:00:02]}  h5 {[%clk 0:01:59]} 60. Ne5 {[%clk 0:00:02]}  Nf4 {[%clk 0:01:59]} 61. h4 {[%clk 0:00:02]}  Kb6 {[%clk 0:02:00]} 62. Ke4 {[%clk 0:00:02]}  Ng2 {[%clk 0:01:59]} 63. Ng6 {[%clk 0:00:02]}  Kxb5 {[%clk 0:02:00]} 64. Ke5 {[%clk 0:00:03]}  Kc5 {[%clk 0:01:59]} 65. Kxe6 {[%clk 0:00:03]}  Kc6 {[%clk 0:02:00]} 66. Kf5 {[%clk 0:00:04]}  Kd6 {[%clk 0:02:00]} 67. Kg5 {[%clk 0:00:04]}  Ke6 {[%clk 0:02:01]} 68. Kxh5 {[%clk 0:00:05]}  Kf6 {[%clk 0:02:02]} 69. Kh6 {[%clk 0:00:04]}  Ne3 {[%clk 0:02:01]} 70. h5 {[%clk 0:00:04]}  Ng4+ {[%clk 0:02:01]} 71. Kh7 {[%clk 0:00:04]}  Kg5 {[%clk 0:02:01]} 72. h6 {[%clk 0:00:04]}  Nf6+ {[%clk 0:02:01]} 73. Kg7 {[%clk 0:00:03]}  Nh5+ {[%clk 0:02:02]} 74. Kh7 {[%clk 0:00:03]}  Nf6+ {[%clk 0:02:02]} 75. Kg7 {[%clk 0:00:04]}  Nh5+ {[%clk 0:02:01]} 76. Kh7 {[%clk 0:00:04]}  Nf6+ {[%clk 0:02:01]} 1/2-1/2


[Site "https://www.chess.com"]

[Event "Titled Tuesday Blitz November 08 Early 2022"]
[White "Cella, Glaucio Dalla Cortt"]
[Black "Grot, Blazej"]
[WhiteFideId "2119455"]
[BlackFideId "21835845"]
[WhiteElo "2011"]
[BlackElo "1822"]
[Result "1-0"]
[Round "06"]
[TimeControl "180+1"]
[Date "2022.11.09"]
[WhiteClock "0:00:36"]
[BlackClock "0:00:16"]

1. e4 {[%clk 0:03:00]}  c5 {[%clk 0:02:59]} 2. Nf3 {[%clk 0:03:01]}  e6 {[%clk 0:02:58]} 3. c3 {[%clk 0:03:02]}  Nf6 {[%clk 0:02:54]} 4. e5 {[%clk 0:03:01]}  Nd5 {[%clk 0:02:54]} 5. d4 {[%clk 0:03:02]}  cxd4 {[%clk 0:02:54]} 6. cxd4 {[%clk 0:03:03]}  b6 {[%clk 0:02:55]} 7. Nc3 {[%clk 0:02:53]}  Bb7 {[%clk 0:02:54]} 8. Bd3 {[%clk 0:02:53]}  d6 {[%clk 0:02:50]} 9. O-O {[%clk 0:02:52]}  Nd7 {[%clk 0:02:49]} 10. Nxd5 {[%clk 0:02:45]}  Bxd5 {[%clk 0:02:48]} 11. Bf4 {[%clk 0:02:46]}  dxe5 {[%clk 0:02:40]} 12. dxe5 {[%clk 0:02:47]}  Be7 {[%clk 0:02:33]} 13. Qe2 {[%clk 0:02:47]}  O-O {[%clk 0:02:31]} 14. Rfd1 {[%clk 0:02:47]}  Qc7 {[%clk 0:02:28]} 15. Rac1 {[%clk 0:02:45]}  Qb7 {[%clk 0:02:28]} 16. Ng5 {[%clk 0:02:00]}  Bxg5 {[%clk 0:01:56]} 17. Bxg5 {[%clk 0:02:01]}  Bxg2 {[%clk 0:01:56]} 18. Ba6 {[%clk 0:02:00]}  Bf3 {[%clk 0:01:05]} 19. Bxb7 {[%clk 0:01:59]}  Bxe2 {[%clk 0:01:05]} 20. Rxd7 {[%clk 0:01:46]}  Rab8 {[%clk 0:01:04]} 21. Be7 {[%clk 0:01:25]}  Rfe8 {[%clk 0:01:02]} 22. Bd6 {[%clk 0:01:20]}  Rbd8 {[%clk 0:00:47]} 23. Rxd8 {[%clk 0:01:20]}  Rxd8 {[%clk 0:00:48]} 24. Rc8 {[%clk 0:01:20]}  Rxc8 {[%clk 0:00:48]} 25. Bxc8 {[%clk 0:01:21]}  h5 {[%clk 0:00:44]} 26. b4 {[%clk 0:01:18]}  Bc4 {[%clk 0:00:39]} 27. a4 {[%clk 0:01:15]}  Bd5 {[%clk 0:00:39]} 28. Bd7 {[%clk 0:01:02]}  g6 {[%clk 0:00:30]} 29. Bb8 {[%clk 0:01:00]}  a6 {[%clk 0:00:28]} 30. Bc7 {[%clk 0:00:50]}  Kf8 {[%clk 0:00:22]} 31. Bxb6 {[%clk 0:00:44]}  Bb7 {[%clk 0:00:18]} 32. Bc5+ {[%clk 0:00:42]}  Kg7 {[%clk 0:00:17]} 33. b5 {[%clk 0:00:42]}  f6 {[%clk 0:00:17]} 34. exf6+ {[%clk 0:00:38]}  Kxf6 {[%clk 0:00:18]} 35. Bc6 {[%clk 0:00:38]}  Bc8 {[%clk 0:00:16]} 36. b6 {[%clk 0:00:36]} 1-0


[Site "https://www.chess.com"]

[Event "Titled Tuesday Blitz November 08 Early 2022"]
[White "Cruz Mendez, Jean Marco"]
[Black "Galperin, Platon"]
[WhiteFideId "3526402"]
[BlackFideId "14165414"]
[WhiteElo "2064"]
[BlackElo "2435"]
[Result "0-1"]
[Round "06"]
[TimeControl "180+1"]
[Date "2022.11.09"]
[WhiteClock "0:02:39"]
[BlackClock "0:02:44"]

1. e4 {[%clk 0:03:00]}  h5 {[%clk 0:02:55]} 2. d4 {[%clk 0:03:00]}  h4 {[%clk 0:02:54]} 3. h3 {[%clk 0:02:59]}  d5 {[%clk 0:02:54]} 4. Bd3 {[%clk 0:02:54]}  dxe4 {[%clk 0:02:54]} 5. Bxe4 {[%clk 0:02:55]}  Nf6 {[%clk 0:02:54]} 6. Bd3 {[%clk 0:02:53]}  Nc6 {[%clk 0:02:52]} 7. c3 {[%clk 0:02:53]}  e5 {[%clk 0:02:51]} 8. Nf3 {[%clk 0:02:44]}  e4 {[%clk 0:02:47]} 9. Qe2 {[%clk 0:02:41]}  Qe7 {[%clk 0:02:45]} 10. d5 {[%clk 0:02:39]}  exd3 {[%clk 0:02:44]} 0-1


[Site "https://www.chess.com"]

[Event "Titled Tuesday Blitz November 08 Early 2022"]
[White "Dahlgren, James Allen"]
[Black "Forgacs, Attila Jr."]
[WhiteFideId "22256873"]
[BlackFideId "773654"]
[WhiteElo "2208"]
[BlackElo "2168"]
[Result "0-1"]
[Round "06"]
[TimeControl "180+1"]
[Date "2022.11.09"]
[WhiteClock "0:00:08"]
[BlackClock "0:00:18"]

1. e4 {[%clk 0:02:59]}  e5 {[%clk 0:02:59]} 2. Nc3 {[%clk 0:02:59]}  Nf6 {[%clk 0:02:56]} 3. Nf3 {[%clk 0:03:00]}  Nc6 {[%clk 0:02:56]} 4. d4 {[%clk 0:03:00]}  exd4 {[%clk 0:02:57]} 5. Nd5 {[%clk 0:03:00]}  Nxe4 {[%clk 0:02:56]} 6. Bc4 {[%clk 0:03:00]}  Be7 {[%clk 0:02:41]} 7. O-O {[%clk 0:02:43]}  O-O {[%clk 0:02:33]} 8. Re1 {[%clk 0:02:38]}  Nf6 {[%clk 0:02:29]} 9. Nxe7+ {[%clk 0:02:08]}  Nxe7 {[%clk 0:02:30]} 10. Bg5 {[%clk 0:02:07]}  Nf5 {[%clk 0:02:15]} 11. Nxd4 {[%clk 0:02:01]}  d5 {[%clk 0:02:15]} 12. Nxf5 {[%clk 0:01:49]}  Bxf5 {[%clk 0:02:16]} 13. Bxf6 {[%clk 0:01:29]}  Qxf6 {[%clk 0:02:03]} 14. Qxd5 {[%clk 0:01:27]}  c6 {[%clk 0:01:56]} 15. Qe5 {[%clk 0:01:21]}  Qxe5 {[%clk 0:01:33]} 16. Rxe5 {[%clk 0:01:22]}  Bxc2 {[%clk 0:01:33]} 17. Re7 {[%clk 0:01:18]}  b5 {[%clk 0:01:33]} 18. Bb3 {[%clk 0:01:15]}  Bxb3 {[%clk 0:01:24]} 19. axb3 {[%clk 0:01:16]}  Rfe8 {[%clk 0:01:24]} 20. Rxe8+ {[%clk 0:01:13]}  Rxe8 {[%clk 0:01:23]} 21. Kf1 {[%clk 0:01:13]}  Re7 {[%clk 0:01:22]} 22. Ra6 {[%clk 0:01:11]}  Rc7 {[%clk 0:01:22]} 23. Ke2 {[%clk 0:01:10]}  Kf8 {[%clk 0:01:21]} 24. Kd3 {[%clk 0:01:07]}  c5 {[%clk 0:01:16]} 25. Ke4 {[%clk 0:00:59]}  Rd7 {[%clk 0:00:45]} 26. Rc6 {[%clk 0:00:40]}  Rd4+ {[%clk 0:00:45]} 27. Ke5 {[%clk 0:00:39]}  Rb4 {[%clk 0:00:43]} 28. Kd6 {[%clk 0:00:35]}  g6 {[%clk 0:00:39]} 29. Rc8+ {[%clk 0:00:17]}  Kg7 {[%clk 0:00:38]} 30. Rxc5 {[%clk 0:00:16]}  Rxb3 {[%clk 0:00:38]} 31. Rc2 {[%clk 0:00:16]}  a5 {[%clk 0:00:35]} 32. Kc5 {[%clk 0:00:16]}  a4 {[%clk 0:00:35]} 33. h4 {[%clk 0:00:14]}  h5 {[%clk 0:00:35]} 34. g3 {[%clk 0:00:14]}  Kf6 {[%clk 0:00:35]} 35. Re2 {[%clk 0:00:13]}  Kf5 {[%clk 0:00:33]} 36. Kb6 {[%clk 0:00:12]}  Kg4 {[%clk 0:00:31]} 37. Ka5 {[%clk 0:00:10]}  Kf3 {[%clk 0:00:31]} 38. Rc2 {[%clk 0:00:10]}  f5 {[%clk 0:00:26]} 39. Kb6 {[%clk 0:00:11]}  b4 {[%clk 0:00:25]} 40. Kb5 {[%clk 0:00:11]}  a3 {[%clk 0:00:25]} 41. bxa3 {[%clk 0:00:11]}  bxa3+ {[%clk 0:00:25]} 42. Kc4 {[%clk 0:00:11]}  Rb2 {[%clk 0:00:22]} 43. Rc3+ {[%clk 0:00:11]}  Kxf2 {[%clk 0:00:22]} 44. Rxa3 {[%clk 0:00:12]}  Re2 {[%clk 0:00:20]} 45. Kd4 {[%clk 0:00:12]}  Re4+ {[%clk 0:00:19]} 46. Kd5 {[%clk 0:00:12]}  Re3 {[%clk 0:00:18]} 47. Ra6 {[%clk 0:00:12]}  Rxg3 {[%clk 0:00:18]} 48. Ke5 {[%clk 0:00:12]}  Rg4 {[%clk 0:00:18]} 49. Ra2+ {[%clk 0:00:08]}  Kg3 {[%clk 0:00:18]} 0-1


[Site "https://www.chess.com"]